Cogmind - Beta 17 @@@ ROGUE MODE // 2026.06.22 @ 21:00:48 Player: Conwew Result: Destroyed by P-70 Sage with Tesla Rifle Performance ------------- Evolutions (6) 3000 Regions Visited (12) 2400 Robots Destroyed (56) 280 Value Destroyed (2184) 2184 Prototype IDs (25) 500 Alien Tech Used (0) 0 Bonus (807) 807 TOTAL SCORE: 9171 Bonus ------- Follower Combat Kills 7 Entered DSFs 500 Aligned with FarCom 300 Cogmind --------- Core Integrity 0/1150 Matter 15/300 Energy 99/100 System Corruption 12% Temperature Cool (0) Movement Core (50) Location -4/Factory Parts ------- > --- POWER (2) -------- (None) > --- PROPULSION (5) --- (None) > --- UTILITY (8) ------ Advanced Visual Processing Unit Improved Signal Interpreter Advanced Targeting Computer Improved Launcher Guidance Computer Improved Launcher Guidance Computer > --- WEAPON (4) ------- (None) > --- INVENTORY (5) ---- Advanced Heat Sink Nanoactuators Phase Shifter Advanced Hardlight Generator Peak State ------------ > --- POWER ------------ Light Fission Core Light Antimatter Reactor > --- PROPULSION ------- Flexi-carbon Leg Flexi-carbon Leg > --- UTILITY ---------- Advanced Heat Sink Superbattery Advanced Visual Processing Unit Improved Signal Interpreter Advanced Targeting Computer Advanced Targeting Computer Improved Reaction Control System Improved Force Field > --- WEAPON ----------- Variable Charge Gun Gauss Rifle Gauss Rifle KE Penetrator > --- INVENTORY -------- Phase Shifter Advanced Hardlight Generator Hacking Suite System Shield [Rating: 82] Favorites ----------- Power Light Nuclear Core Engine Light Ion Engine Power Core Light Nuclear Core Reactor Light Antimatter Reactor Propulsion Cesium-ion Thruster Leg Flexi-carbon Leg Wheel Compact Wheel Flight Unit Cesium-ion Thruster Utility Advanced Targeting Computer Device Advanced Heat Sink Storage Superbattery Processor Advanced Targeting Computer Hackware Hacking Suite Protection Light Armor Plating Weapon Variable Charge Gun Energy Gun Variable Charge Gun Ballistic Gun Gauss Rifle Launcher Micro-nuke Launcher Build | -11 -10 -10 -10 -9 -8 -8 -8 -8 -6 -6 -5 -4 ------- Run | Yrd Mat Min Exi Min Mat Sto Rec Scr Fac DSF Fac Fac Slots Evolved 12 | . . . . . 4 . . . 4 . 2 2 Power 1 | . . . . . . . . . 1 . . . Propulsion 3 | . . . . . 1 . . . 1 . 1 . Utility 6 | . . . . . 3 . . . 2 . . 1 Weapon 2 | . . . . . . . . . . . 1 1 Parts Attached 85 | 5 9 10 . . 14 2 . 2 . 2 22 19 Power 13 | 1 1 3 . . 1 . . . . . 4 3 Engine 5 | 1 . 2 . . . . . . . . . 2 Core 7 | . 1 1 . . 1 . . . . . 4 . Reactor 1 | . . . . . . . . . . . . 1 Propulsion 20 | 2 2 3 . . 4 1 . 1 . . 5 2 Treads . | . . . . . . . . . . . . . Leg 4 | . . . . . . . . . . . 2 2 Wheel 4 | 2 2 . . . . . . . . . . . Hover . | . . . . . . . . . . . . . Flight 12 | . . 3 . . 4 1 . 1 . . 3 . Utility 30 | . 4 1 . . 5 1 . 1 . 2 7 9 Device 13 | . 2 . . . 2 . . . . . 5 4 Storage 1 | . . . . . . . . . . . 1 . Processor 7 | . 1 1 . . 1 . . . . 2 . 2 Hackware 3 | . 1 . . . . . . . . . . 2 Protection 6 | . . . . . 2 1 . 1 . . 1 1 Artifact . | . . . . . . . . . . . . . Weapon 22 | 2 2 3 . . 4 . . . . . 6 5 Energy Gun 12 | 1 1 . . . 3 . . . . . 5 2 Energy Cannon . | . . . . . . . . . . . . . Ballistic Gun 9 | 1 1 3 . . 1 . . . . . 1 2 Ballistic Cannon . | . . . . . . . . . . . . . Launcher 1 | . . . . . . . . . . . . 1 Special Weapon . | . . . . . . . . . . . . . Impact Weapon . | . . . . . . . . . . . . . Slashing Weapon . | . . . . . . . . . . . . . Piercing Weapon . | . . . . . . . . . . . . . Special Melee Weapon . | . . . . . . . . . . . . . Unidentified Prototypes 2 | . . . . . 2 . . . . . . . Parts Lost 45 | . 2 4 . . 4 1 . . . . 13 21 Power 8 | . 1 1 . . . . . . . . 3 3 Propulsion 14 | . . 1 . . 2 1 . . . . 6 4 Utility 12 | . 1 1 . . 1 . . . . . 2 7 Weapon 11 | . . 1 . . 1 . . . . . 2 7 Highest Loss Streak 8 | . 1 2 . . 4 1 . . . . 8 6 To Critical Strikes . | . . . . . . . . . . . . . Average Backups 4 | . 4 4 5 5 3 3 3 2 3 3 3 4 Power . | . . . . . . . . . . . . . Propulsion . | . . 1 1 1 1 1 1 . . . . . Utility 2 | . . 1 2 2 1 2 2 2 3 3 2 4 Weapon 1 | . 2 1 2 2 1 . . . . . 1 . Tool/Special . | . . . . . . . . . . . . . Unused Backups 9 | . 1 3 1 . . 1 . . . . 1 2 Power . | . . . . . . . . . . . . . Propulsion 1 | . . 1 . . . . . . . . . . Utility 5 | . . . 1 . . 1 . . . . 1 2 Weapon 2 | . . 2 . . . . . . . . . . Tool/Special 1 | . 1 . . . . . . . . . . . Average Slot Usage (%) 80 | . 93 85 100 100 86 99 100 100 73 76 68 63 Engine 1 | . 1 11 . . . . . . . . . 1 Core 6 | . 12 2 14 14 9 9 9 9 6 4 1 1 Leg 2 | . . . . . . . . . . . 2 7 Wheel 5 | . 28 2 . . . . . . . . . . Flight 11 | . . 24 28 28 24 26 27 27 20 20 12 . Device 6 | . 12 1 . . 3 9 9 9 6 4 4 7 Storage 1 | . . . . . . . . . . . 4 3 Processor 20 | . 8 15 28 28 23 27 27 27 20 28 24 20 Hackware 1 | . . . . . . . . . . . . 3 Protection 3 | . . . . . 13 9 9 9 6 6 3 1 Energy Gun 7 | . 14 1 . . 6 9 9 9 6 4 7 5 Ballistic Gun 10 | . 14 26 28 28 5 9 9 9 6 6 2 6 Peak Build Rating 82 | 5 11 12 13 13 28 29 28 32 33 39 79 82 Average Rating 34 | 3 9 6 12 13 21 27 28 30 32 33 56 60 On Entrance 22 | . 5 9 12 13 13 26 28 28 32 33 30 61 Avg Prop Armor Cover (%) 7 | . . . . . . . . . . . 7 . Naked Turns . | . . . . . . . . . . . . . Heaviest Build 51 | 7 9 8 8 8 16 15 15 15 15 15 33 51 Greatest Support 45 | 26 32 32 8 8 16 17 17 18 18 18 43 45 Greatest Overweight (x) 5 | . . . . . 5 . . . . . 1 2 Average Overweight (x) . | . . . . . . . . . . . . . Largest Inventory Capacity 5 | 5 5 5 5 5 5 5 5 5 5 5 5 5 Average Capacity 5 | 5 5 5 5 5 5 5 5 5 5 5 5 5 Most Carried 5 | . 5 5 5 5 5 5 3 3 4 4 5 5 Average Carried 4 | . 4 4 5 5 3 3 3 2 3 3 3 4 Final Capacity 5 | 5 5 5 5 5 5 5 5 5 5 5 5 5 Final Carried 5 | . 5 5 5 5 4 3 3 2 4 3 5 4 Class Distribution -------------------- 34% | Mutant 20% | Sprinter 11% | Scavenger-Gunner 10% | Scavenger-Mutant 8% | Hacker-Mutant 6% | Scavenger-Skirmisher 4% | Scavenger-Sprinter 4% | Gunner Dominant Class ---------------- Mutant | -10/Materials Scavenger-Mutant | -10/Mines Mutant | -10/Exiles Mutant | -9/Mines Scavenger-Sprinter | -8/Materials Sprinter | -8/Storage Sprinter | -8/Recycling Sprinter | -8/Scraptown Sprinter | -6/Factory Sprinter | -6/DSF Sprinter | -5/Factory Scavenger-Gunner | -4/Factory Resources | -11 -10 -10 -10 -9 -8 -8 -8 -8 -6 -6 -5 -4 ----------- Run | Yrd Mat Min Exi Min Mat Sto Rec Scr Fac DSF Fac Fac Matter Collected 1569 | 242 104 221 . 35 145 88 . 20 . . 282 432 Remotely . | . . . . . . . . . . . . . Salvage Created 2406 | . 289 311 . . 159 161 . . . . 527 959 Parts 122 | . 15 21 . . 11 10 . . . . 22 43 Haulers Intercepted 2 | . 2 . . . . . . . . . . . Recyclers Shooed 2 | . . . . . . . . . . . 1 1 Parts Field Recycled . | . . . . . . . . . . . . . Retrieved Matter . | . . . . . . . . . . . . . Parts Self-Destructed . | . . . . . . . . . . . . . Prevented . | . . . . . . . . . . . . . Parts Restored . | . . . . . . . . . . . . . Kills | -11 -10 -10 -10 -9 -8 -8 -8 -8 -6 -6 -5 -4 ------- Run | Yrd Mat Min Exi Min Mat Sto Rec Scr Fac DSF Fac Fac Combat Hostiles Destroyed 47 | . 3 13 . . 5 3 . . . . 10 13 Guns 44 | . 3 13 . . 5 3 . . . . 10 10 AOE 3 | . . . . . . . . . . . . 3 Classes Destroyed 10 | . 4 1 . . 2 . . . . . 2 1 Builder 2 | . . . . . . . . . . . . 2 Hauler 2 | . 2 . . . . . . . . . . . Recycler 2 | . . . . . . . . . . . 1 1 Operator 1 | . 1 . . . . . . . . . . . Watcher 2 | . 1 . . . . . . . . . . 1 Swarmer 17 | . . 9 . . 3 . . . . . 5 . Grunt 18 | . 3 4 . . . 1 . . . . 2 8 Sentry 4 | . . . . . 1 2 . . . . . 1 Hunter 2 | . . . . . 1 . . . . . 1 . Programmer 6 | . . . . . . . . . . . 2 4 Best Kill Streak 6 | . 3 6 . . 5 2 . . . . 5 6 Combat Bots Only 6 | . 3 6 . . 5 2 . . . . 4 4 Max Kills in Single Turn 2 | . 1 1 . . 1 1 . . . . 2 2 Gunslinging 1 | . . . . . . . . . . . 1 . Exploded 2 | . . . . . . . . . . . . 2 Melee . | . . . . . . . . . . . . . Uniques/NPCs Destroyed . | . . . . . . . . . . . . . Combat | -11 -10 -10 -10 -9 -8 -8 -8 -8 -6 -6 -5 -4 -------- Run | Yrd Mat Min Exi Min Mat Sto Rec Scr Fac DSF Fac Fac Hostile Shots Fired 555 | . 36 73 . 5 54 16 . . . 17 123 231 Missed 186 | . 11 18 . 2 19 7 . . . 8 49 72 Hits 369 | . 25 55 . 3 35 9 . . . 9 74 159 Melee 5 | . . . . . . . . . . 4 1 . Projectile 364 | . 25 55 . 3 35 9 . . . 5 73 159 AOE 7 | . . . . . . . . . . 3 . 4 Critical Strikes 16 | . . 1 . . . 1 . . . 3 2 9 Damage Taken 6021 | . 297 512 . 21 325 173 . . . 204 1449 3040 Core 1729 | . 77 107 . 7 23 59 . . . 25 264 1167 Absorbed by Shields 419 | . . . . . . . . . . 11 . 408 Redirected to Shielding 39 | . . . . . . . . . . . 39 . Ignored by Resistances 28 | . . . . . . . . . . . . 28 Core Remaining (%) 75 | 100 . . . 23 . . . 85 . 97 73 . Volleys Fired 174 | . 32 32 . . 16 8 . . . 3 29 54 Largest 4 | . 2 2 . . 2 2 . . . 2 3 4 Hottest 225 | . 60 60 . . 83 88 . . . 88 225 206 Shots Fired 399 | . 65 64 . . 30 16 . . . 4 80 140 Gun 389 | . 65 64 . . 30 16 . . . 4 80 130 Cannon . | . . . . . . . . . . . . . Launcher 10 | . . . . . . . . . . . . 10 Special . | . . . . . . . . . . . . . Kinetic 222 | . 33 56 . . 25 8 . . . 3 12 85 Thermal 166 | . 32 8 . . 5 8 . . . 1 68 44 Explosive 10 | . . . . . . . . . . . . 10 Electromagnetic 1 | . . . . . . . . . . . . 1 Robot Hit Streak 45 | . 9 10 . . 6 8 . . . 6 10 45 Robot Miss Streak 6 | . 3 6 . . 2 4 . . . 1 4 3 Penetration Max 1 | . . . . . . . . . . . . 1 Secondary Targets 15 | . . 5 . . 1 . . . . . 4 5 Max Gunslinging Chain 2 | . . 1 . . 1 . . . . . 2 1 Shots Hit Robots 291 | . 42 39 . . 19 12 . . . 3 53 123 Core Hits 121 | . 16 18 . . 9 6 . . . 1 24 47 Critical Kills 2 | . . 1 . . . . . . . . . 1 Critical Parts Destroyed 3 | . 1 . . . . . . . . . . 2 Critical Strikes 6 | . 1 1 . . . . . . . . . 4 Burn 1 | . . . . . . . . . . . . 1 Destroy 5 | . 1 1 . . . . . . . . . 3 Melee Attacks . | . . . . . . . . . . . . . Impact . | . . . . . . . . . . . . . Slashing . | . . . . . . . . . . . . . Piercing . | . . . . . . . . . . . . . Sneak Attacks . | . . . . . . . . . . . . . Combat Hostiles . | . . . . . . . . . . . . . Follow-up Attacks . | . . . . . . . . . . . . . Damage Inflicted 6034 | . 432 444 . . 194 231 . . . 73 1324 3336 Guns 5330 | . 432 444 . . 194 231 . . . 73 1324 2632 Cannons . | . . . . . . . . . . . . . Explosions 704 | . . . . . . . . . . . . 704 Melee . | . . . . . . . . . . . . . Ramming . | . . . . . . . . . . . . . Kinetic 2792 | . 223 369 . . 161 131 . . . 73 181 1654 Thermal 2745 | . 209 75 . . 33 100 . . . . 1143 1185 Explosive 497 | . . . . . . . . . . . . 497 Electromagnetic . | . . . . . . . . . . . . . Impact . | . . . . . . . . . . . . . Slashing . | . . . . . . . . . . . . . Piercing . | . . . . . . . . . . . . . Highest Corruption 11 | . 2 2 2 2 . . . . . . 5 11 Average Corruption 3 | . 2 2 2 2 . . . . . . 4 5 Corruption Purged . | . . . . . . . . . . . . . Corruption Blocked . | . . . . . . . . . . . . . Effects 45 | . 11 5 2 2 . . . . . . 4 21 Message Errors 13 | . 1 2 1 2 . . . . . . 3 4 Matter Fused 11 | . . . 1 . . . . . . . 1 9 Heat Flow Errors 5 | . 2 . . . . . . . . . . 3 Energy Discharges 3 | . 3 . . . . . . . . . . . Parts Rejected 2 | . . . . . . . . . . . . 2 Data Loss (minor) 6 | . 2 2 . . . . . . . . . 2 Data Loss (major) 2 | . 1 . . . . . . . . . . 1 Misfires 3 | . 2 1 . . . . . . . . . . Overload Shots . | . . . . . . . . . . . . . Overflow Damage 46 | . . . . . . . . . . . . 46 Projectiles . | . . . . . . . . . . . . . Explosions 46 | . . . . . . . . . . . . 46 Melee . | . . . . . . . . . . . . . Knockbacks . | . . . . . . . . . . . . . Impact . | . . . . . . . . . . . . . Kinetic . | . . . . . . . . . . . . . Secondary . | . . . . . . . . . . . . . Self-Inflicted Damage 16 | . . . . . . . . . . . . 16 Shots 1 | . . . . . . . . . . . . 1 Rammed . | . . . . . . . . . . . . . Targets Rammed . | . . . . . . . . . . . . . Kicked . | . . . . . . . . . . . . . Crushed . | . . . . . . . . . . . . . Highest Temperature 325 | . 254 28 . . 117 198 . . . . 325 189 Average Temperature 76 | . 88 9 . . 30 77 . . . . 141 76 Received Heat Transfer 979 | . 171 117 . . 9 99 . . . . 135 448 Effects 3 | . 1 . . . . . . . . . 2 . Energy Bleed 1 | . 1 . . . . . . . . . . . Interference 2 | . . . . . . . . . . . 2 . Siege Activations . | . . . . . . . . . . . . . Martial Activations . | . . . . . . . . . . . . . Shielding Activations . | . . . . . . . . . . . . . Robots Disrupted . | . . . . . . . . . . . . . Combat Hostiles . | . . . . . . . . . . . . . Robots Corrupted . | . . . . . . . . . . . . . Combat Hostiles . | . . . . . . . . . . . . . Parts Fried . | . . . . . . . . . . . . . Impact Corruptions . | . . . . . . . . . . . . . Robots Melted . | . . . . . . . . . . . . . Combat Hostiles . | . . . . . . . . . . . . . Parts Melted 7 | . . . . . . . . . . . 4 3 Heat Transferred 4530 | . 475 175 . . 74 222 . . . . 1776 1808 Parts Sabotaged . | . . . . . . . . . . . . . Parts Stolen . | . . . . . . . . . . . . . Parts Stripped . | . . . . . . . . . . . . . Power Chain Reactions . | . . . . . . . . . . . . . Alert | -11 -10 -10 -10 -9 -8 -8 -8 -8 -6 -6 -5 -4 ------- Run | Yrd Mat Min Exi Min Mat Sto Rec Scr Fac DSF Fac Fac Maximum Alert Level 1 | . . . . . . . . . . . . 1 Low Security (%) 96 | 100 100 100 . 100 100 100 100 . 100 100 100 88 Level 1 3 | . . . . . . . . . . . . 11 Level 2 . | . . . . . . . . . . . . . Level 3 . | . . . . . . . . . . . . . Level 4 . | . . . . . . . . . . . . . Level 5 . | . . . . . . . . . . . . . High Security . | . . . . . . . . . . . . . Max Security . | . . . . . . . . . . . . . Peak Influence 283 | . 50 140 . 75 100 90 14 . 15 18 117 283 Initial 40 | . . . . . 40 . . . . 3 9 18 Average 43 | . 5 103 . 14 38 33 2 . 2 3 29 73 Influence Increases 1924 | . 131 310 . 115 132 120 18 . 20 15 369 694 Destroy 0b10 Robot/C 980 | . 60 260 . 40 100 60 . . . . 200 260 Destroy 0b10 Robot/NC 45 | . 20 . . . . . . . . . 5 20 Destroy Leader 228 | . 16 50 . 10 30 30 . . . . 40 52 Allied During Kill 5 | . . . . 5 . . . . . . . . Successful Hack 32 | . 5 . . . 2 . 18 . 5 . . 2 Disable Machine 165 | . . . . . . . . . . . 15 150 Destroy Structure 214 | . . . . . . . . . . . 4 210 Partial Spotted 15 | . . . . . . . . . 15 . . . Lose Combat Pursuer 240 | . 30 . . 60 . 30 . . . 15 105 . Influence Decreases 1704 | . 131 238 72 10 237 120 18 . 15 2 348 513 Entered New Map 169 | . . . 72 . 65 . . . . 2 9 21 Time Decay 1169 | . 111 198 . 10 152 110 18 . 15 . 219 336 Lost Part 366 | . 20 40 . . 20 10 . . . . 120 156 Squads Dispatched 16 | . 2 1 . . 2 1 . . . 1 5 4 Investigation 5 | . 1 1 . . 1 1 . . . . 1 . Extermination 5 | . . . . . . . . . . . 2 3 Reinforcement 5 | . 1 . . . 1 . . . . 1 1 1 Assault . | . . . . . . . . . . . . . Garrison 1 | . . . . . . . . . . . 1 . Intercept . | . . . . . . . . . . . . . Searches Triggered . | . . . . . . . . . . . . . Construction Impeded . | . . . . . . . . . . . . . Haulers Reinforced . | . . . . . . . . . . . . . Active Scanning Responses . | . . . . . . . . . . . . . Cargo Convoy Interrupts . | . . . . . . . . . . . . . Stealth | -11 -10 -10 -10 -9 -8 -8 -8 -8 -6 -6 -5 -4 --------- Run | Yrd Mat Min Exi Min Mat Sto Rec Scr Fac DSF Fac Fac Distress Signals . | . . . . . . . . . . . . . Communications Jammed . | . . . . . . . . . . . . . Distress Signals . | . . . . . . . . . . . . . Times Spotted 98 | . 16 13 . 4 6 6 . . . 5 24 24 Peak Tracking Total 8 | . 6 5 . 4 5 6 . . . 5 7 8 Tactical Retreats 8 | . 1 . . 1 . 2 . . . 1 3 . Traps | -11 -10 -10 -10 -9 -8 -8 -8 -8 -6 -6 -5 -4 ------- Run | Yrd Mat Min Exi Min Mat Sto Rec Scr Fac DSF Fac Fac Traps Triggered 12 | . 2 . . . 1 1 . . . 1 2 5 Indirectly . | . . . . . . . . . . . . . Trap Hack Attempts . | . . . . . . . . . . . . . Triggered . | . . . . . . . . . . . . . Disarmed . | . . . . . . . . . . . . . Reprogrammed . | . . . . . . . . . . . . . Reused . | . . . . . . . . . . . . . Traps Extracted . | . . . . . . . . . . . . . Installed . | . . . . . . . . . . . . . Triggered . | . . . . . . . . . . . . . Machines | -11 -10 -10 -10 -9 -8 -8 -8 -8 -6 -6 -5 -4 ---------- Run | Yrd Mat Min Exi Min Mat Sto Rec Scr Fac DSF Fac Fac Machines Disabled 11 | . . . . . . . . . . . 1 10 Max in Single Turn 6 | . . . . . . . . . . . 1 6 Machines Repaired . | . . . . . . . . . . . . . Machines Dismantled . | . . . . . . . . . . . . . Machines Sabotaged . | . . . . . . . . . . . . . Overloaded Fab Kills . | . . . . . . . . . . . . . Hacking | -11 -10 -10 -10 -9 -8 -8 -8 -8 -6 -6 -5 -4 --------- Run | Yrd Mat Min Exi Min Mat Sto Rec Scr Fac DSF Fac Fac Machines Accessed 19 | . 2 1 2 . 3 1 5 . 1 . 2 2 Terminals 12 | . 2 . . . 1 1 5 . 1 . 1 1 Fabricators . | . . . . . . . . . . . . . Repair Stations . | . . . . . . . . . . . . . Recycling Units . | . . . . . . . . . . . . . Scanalyzers 3 | . . . . . 2 . . . . . . 1 Garrison Access 1 | . . . . . . . . . . . 1 . Total Hacks 39 | . 3 1 5 . 6 2 12 . 1 . 3 6 Successful 20 | . 1 1 5 . 3 1 5 . 1 . . 3 Failed 17 | . 2 . . . 2 1 7 . . . 3 2 Catastrophic 1 | . . . . . . . . . . . 1 . Database Lockouts 2 | . . . . . 1 . . . . . . 1 Manual 17 | . . . 1 . . 2 12 . . . 1 1 Terminals 22 | . 3 . . . 2 2 12 . 1 . 1 1 Fabricators . | . . . . . . . . . . . . . Repair Stations . | . . . . . . . . . . . . . Recycling Units . | . . . . . . . . . . . . . Scanalyzers 9 | . . . . . 4 . . . . . . 5 Garrison Access 2 | . . . . . . . . . . . 2 . Terminal Hacks 9 | . 1 1 5 . . . 1 . 1 . . . Record 4 | . . . 4 . . . . . . . . . Open Door 1 | . . 1 . . . . . . . . . . Open DSF 1 | . . . . . . . . . 1 . . . Terminal Index 1 | . 1 . . . . . . . . . . . Zone Layout 1 | . . . . . . . 1 . . . . . Proto ID Catalog 1 | . . . 1 . . . . . . . . . Fabricator Hacks . | . . . . . . . . . . . . . Repair Station Hacks . | . . . . . . . . . . . . . Recycling Unit Hacks . | . . . . . . . . . . . . . Scanalyzer 5 | . . . . . 3 . . . . . . 2 Retrieve Study 5 | . . . . . 3 . . . . . . 2 Garrison Access Hacks . | . . . . . . . . . . . . . Unauthorized Hacks 6 | . . . . . . 1 4 . . . . 1 Terminals 6 | . . . . . . 1 4 . . . . 1 Botnet 6 | . . . . . . 1 4 . . . . 1 Fabricators . | . . . . . . . . . . . . . Repair Stations . | . . . . . . . . . . . . . Recycling Units . | . . . . . . . . . . . . . Scanalyzers . | . . . . . . . . . . . . . Garrison Access . | . . . . . . . . . . . . . Data Cores Recovered 1 | . 1 . . . . . . . . . . . Used 1 | . 1 . . . . . . . . . . . Hacking Detections 11 | . . . . . 3 1 3 . 1 . 2 1 Full Trace Events 1 | . . . . . . . . . . . 1 . Feedback Events . | . . . . . . . . . . . . . Feedback Blocked . | . . . . . . . . . . . . . Robot Schematics Acquired . | . . . . . . . . . . . . . Robots Built . | . . . . . . . . . . . . . Authchips . | . . . . . . . . . . . . . Time . | . . . . . . . . . . . . . Total Robot Build Rating . | . . . . . . . . . . . . . Part Schematics Acquired . | . . . . . . . . . . . . . Parts Built . | . . . . . . . . . . . . . Authchips . | . . . . . . . . . . . . . Time . | . . . . . . . . . . . . . Total Part Build Rating . | . . . . . . . . . . . . . Part Studies Acquired 5 | . . . . . 3 . . . . . . 2 Parts Repaired . | . . . . . . . . . . . . . Time . | . . . . . . . . . . . . . Parts Recycled . | . . . . . . . . . . . . . Recycled Matter . | . . . . . . . . . . . . . Retrieved Matter . | . . . . . . . . . . . . . Retrieved Components . | . . . . . . . . . . . . . Parts Scanalyzed . | . . . . . . . . . . . . . Part Schematics Acquired . | . . . . . . . . . . . . . Parts Damaged . | . . . . . . . . . . . . . Bothacking | -11 -10 -10 -10 -9 -8 -8 -8 -8 -6 -6 -5 -4 ------------ Run | Yrd Mat Min Exi Min Mat Sto Rec Scr Fac DSF Fac Fac Used RIF Installer . | . . . . . . . . . . . . . Robots Hacked . | . . . . . . . . . . . . . Non-combat . | . . . . . . . . . . . . . Combat . | . . . . . . . . . . . . . Robot Hacks Applied . | . . . . . . . . . . . . . Relay Couplers Released . | . . . . . . . . . . . . . Fabnet Peak Effective % . | . . . . . . . . . . . . . Robots Rewired . | . . . . . . . . . . . . . Allies Hacked . | . . . . . . . . . . . . . Hacks Repelled . | . . . . . . . . . . . . . Allies | -11 -10 -10 -10 -9 -8 -8 -8 -8 -6 -6 -5 -4 -------- Run | Yrd Mat Min Exi Min Mat Sto Rec Scr Fac DSF Fac Fac Total Allies 4 | . . . . 4 . . . . . . . . Largest Group 4 | . . . . 4 . . . . . . . . Highest-Rated Group 71 | . . . . 71 . . . . . . . . Highest-Rated Ally 31 | . . . . 31 . . . . . . . . Total Orders . | . . . . . . . . . . . . . Ally Attacks 8 | . . . . 8 . . . . . . . . Total Damage 55 | . . . . 55 . . . . . . . . Kills 2 | . . . . 2 . . . . . . . . Allies Corrupted . | . . . . . . . . . . . . . Allies Melted . | . . . . . . . . . . . . . Intel | -11 -10 -10 -10 -9 -8 -8 -8 -8 -6 -6 -5 -4 ------- Run | Yrd Mat Min Exi Min Mat Sto Rec Scr Fac DSF Fac Fac Active Infowar (turns) 3551 | . 452 20 . . 247 272 114 223 103 33 679 1408 Optics 3079 | . . . . . 247 272 114 223 103 33 679 1408 Sensors 473 | . 452 20 . . . . . . . . 1 . Robot Analysis Total . | . . . . . . . . . . . . . Derelict Logs Recovered 2 | . . 1 . 1 . . . . . . . . Drone Launches . | . . . . . . . . . . . . . Drone Recoveries . | . . . . . . . . . . . . . Exploration | -11 -10 -10 -10 -9 -8 -8 -8 -8 -6 -6 -5 -4 ------------- Run | Yrd Mat Min Exi Min Mat Sto Rec Scr Fac DSF Fac Fac Turns Passed 4844 | 40 936 404 140 96 374 272 114 223 103 33 701 1408 Spaces Moved 6401 | 38 497 754 373 241 620 386 359 756 305 79 1095 898 Core 176 | 2 . . . . 3 . . . . . . 171 Treads . | . . . . . . . . . . . . . Legs 880 | . . . . . . . . . . . 153 727 Wheels 535 | 36 497 2 . . . . . . . . . . Hover . | . . . . . . . . . . . . . Flight 4810 | . . 752 373 241 617 386 359 756 305 79 942 . Fastest Speed 27 | 50 90 37 37 37 32 30 30 29 29 29 27 50 Average Speed 53 | 87 94 37 37 37 35 30 30 29 29 29 45 128 Slowest Speed 300 | 90 100 100 37 37 300 32 30 30 29 29 170 190 Overloaded Moves . | . . . . . . . . . . . . . Propulsion Burnouts . | . . . . . . . . . . . . . Robots Hopped 13 | . . 4 . 2 3 1 1 . . . 2 . Potential Cave-ins . | . . . . . . . . . . . . . Cave-ins Triggered . | . . . . . . . . . . . . . Exploration Rate (%) 50 | 4 81 97 75 35 52 45 95 60 6 61 25 26 Regions Visited 12 Branch Regions 6 Pre-discovered Areas 3 | . . 1 1 . . 1 . . . . . . Known Exits Taken 10 | . 1 1 1 1 1 1 1 1 1 . 1 . Unknown Exits Taken 1 | 1 . . . . . . . . . . . . Scrap Searched 9 | . . 1 . 1 . . . 7 . . . . Spaces Dug . | . . . . . . . . . . . . . Terrain Destroyed 125 | . . . . . . . . . . . 2 123 Melee . | . . . . . . . . . . . . . Projectile 7 | . . . . . . . . . . . 2 5 AOE 118 | . . . . . . . . . . . . 118 Terrain Rammed . | . . . . . . . . . . . . . Walls Destroyed . | . . . . . . . . . . . . . Machines Disabled . | . . . . . . . . . . . . . Actions | -11 -10 -10 -10 -9 -8 -8 -8 -8 -6 -6 -5 -4 --------- Run | Yrd Mat Min Exi Min Mat Sto Rec Scr Fac DSF Fac Fac Total 7442 | 42 904 815 374 245 743 523 363 759 318 83 1231 1042 Wait 693 | . 355 6 . 7 87 126 6 . 12 . 61 33 Move 6363 | 37 496 745 372 236 613 383 356 755 304 78 1090 898 Hop 13 | . . 4 . 2 3 1 1 . . . 2 . Pick Up 42 | . 7 6 1 . 3 1 . . 2 . 15 7 Fast Attach 51 | 5 6 7 . . 10 . . 1 . 1 9 12 Attach 34 | . 1 2 . . 4 1 . 1 . 1 15 9 Detach 6 | . . . . . . . . . . . 3 3 Swap 8 | . 2 2 . . 1 1 . . . . 1 1 Drop 38 | . 5 11 1 . 6 2 . 2 . . 6 5 Fire 174 | . 32 32 . . 16 8 . . . 3 29 54 Melee . | . . . . . . . . . . . . . Ram . | . . . . . . . . . . . . . Kick . | . . . . . . . . . . . . . Crush . | . . . . . . . . . . . . . Escape Stasis 20 | . . . . . . . . . . . . 20 Rewire . | . . . . . . . . . . . . . Trap . | . . . . . . . . . . . . . Miscellaneous . | . . . . . . . . . . . . . Route ------- -11/Scrapyard -10/Materials (discovered 3 exits: *Mat x2 / *Min) -10/Mines (discovered 4 exits: *Mat x2 / *Exi / *Sub) -10/Exiles -9/Mines -8/Materials (discovered 2 exits: *Fac / *Sto) -8/Storage -8/Recycling (discovered 2 exits: *Fac / *Scr) -8/Scraptown -6/Factory -6/DSF -5/Factory -4/Factory (discovered 1 exit: *Res) History --------- Turn | Location | Event 7 | -11/Scrapyard | Discovered new exit (range 15) 41 | -11/Scrapyard | Entered Materials 197 | -10/Materials | Discovered new exit (range 12) 317 | -10/Materials | Build established: Mutant 373 | -10/Materials | Discovered new exit (range 13) 422 | -10/Materials | Discovered new exit (range 13) 947 | -10/Materials | Identified exit to Materials 976 | -10/Materials | Identified exit to Mines 977 | -10/Materials | Entered Mines 1073 | -10/Mines | Discovered exit to Materials (range 5) 1076 | -10/Mines | Learned location of Storage (-8) 1108 | -10/Mines | Discovered exit to Materials (range 12) 1174 | -10/Mines | Core integrity fell below 50% 1295 | -10/Mines | Discovered new exit (range 6) 1297 | -10/Mines | Identified exit to Subcaves 1323 | -10/Mines | Deemed a non-threat by the Exiles lab entrance 1323 | -10/Mines | Discovered new exit (range 5) 1341 | -10/Mines | Met a Derelict shopkeep closing up shop 1380 | -10/Mines | Identified exit to Exiles 1381 | -10/Mines | Entered Exiles 1391 | -10/Exiles | Met 8R-AWN 1397 | -10/Exiles | Met EX-HEX 1408 | -10/Exiles | Met EX-BIN 1413 | -10/Exiles | Aligned with FarCom system 1413 | -10/Exiles | Given EX-Vault access code 1423 | -10/Exiles | Opened EX-Vault 1426 | -10/Exiles | Found Superbattery 1436 | -10/Exiles | Warned to stay clear of 0b10 Research branches 1446 | -10/Exiles | Met EX-DEC 1448 | -10/Exiles | Learned location of Zion (-6) 1464 | -10/Exiles | Visited The Gauntlet 1516 | -10/Exiles | Discovered new exit (range 14) 1520 | -10/Exiles | Identified exit to Mines 1521 | -10/Exiles | Left Exiles lab with Superbattery 1521 | -10/Exiles | Entered Mines 1526 | -9/Mines | Received a Mining Laser from a helpful Derelict 1550 | -9/Mines | Assisted by bots powering up and referring to "LRC-V3" 1581 | -9/Mines | Assembled infested the area 1581 | -9/Mines | Discovered new exit (range 6) 1581 | -9/Mines | Learned Materials security intel 1609 | -9/Mines | Identified exit to Materials 1617 | -9/Mines | Entered Materials 1617 | -8/Materials | Evolved 4 slots: Propulsion x1, Utility x3 1738 | -8/Materials | Lost 4 parts (2n1u1w) 1767 | -8/Materials | Discovered new exit (range 20) 1773 | -8/Materials | Identified exit to Factory 1809 | -8/Materials | Met 7R-MNS 1824 | -8/Materials | Discovered new exit (range 10) 1825 | -8/Materials | Identified exit to Storage 1851 | -8/Materials | Central database locked down 1991 | -8/Materials | Entered Storage 1992 | -8/Storage | Identified exit to Recycling 1999 | -8/Storage | Met 01-MTF 2222 | -8/Storage | Learned location of Armory (-3) 2263 | -8/Storage | Entered Recycling 2323 | -8/Recycling | Discovered new exit (range 18) 2328 | -8/Recycling | Identified exit to Factory 2337 | -8/Recycling | Build established: Sprinter 2369 | -8/Recycling | Scanned before Scraplab entrance 2374 | -8/Recycling | Entered Scraplab 2376 | -8/Recycling | Discovered new exit (range 2) 2376 | -8/Recycling | Identified exit to Scraptown 2377 | -8/Recycling | Entered Scraptown 2426 | -8/Scraptown | Discovered exit to Factory (range 13) 2457 | -8/Scraptown | Turned away by UFD registrar 2461 | -8/Scraptown | Visited Shadow of the Wyrm 2465 | -8/Scraptown | Visited IN-MT5's Study 2472 | -8/Scraptown | Visited Cyclists 2479 | -8/Scraptown | Visited Bundlers 2500 | -8/Scraptown | Visited Symbiants 2506 | -8/Scraptown | Visited Red Mages 2531 | -8/Scraptown | Visited Fellowship of the Rings 2600 | -8/Scraptown | Entered Factory 2600 | -6/Factory | Evolved 4 slots: Power x1, Propulsion x1, Utility x2 2703 | -6/Factory | Identified exit to DSF 2703 | -6/Factory | Entered DSF 2718 | -6/DSF | Additional patrols routed to DSF 2730 | -6/DSF | Discovered new exit (range 19) 2735 | -6/DSF | Identified exit to Factory 2736 | -6/DSF | Entered Factory 2736 | -5/Factory | Evolved 2 slots: Propulsion x1, Weapon x1 2925 | -5/Factory | Garrison activated, responded to threat 3092 | -5/Factory | Lost 8 parts (2p3n1u2w) 3219 | -5/Factory | Discovered new exit (range 9) 3227 | -5/Factory | Identified exit to Factory 3437 | -5/Factory | Entered another Factory area 3437 | -4/Factory | Evolved 2 slots: Utility x1, Weapon x1 3474 | -4/Factory | Central database locked down 3528 | -4/Factory | Discovered new exit (range 8) 3541 | -4/Factory | Identified exit to Research 3706 | -4/Factory | Build established: Scavenger-Gunner 3992 | -4/Factory | Lost 6 parts (2p1n2u1w) 4240 | -4/Factory | Build established: Scavenger-Skirmisher 4313 | -4/Factory | Lost 6 parts (1p1n1u3w) 4565 | -4/Factory | Build established: Hacker-Mutant 4770 | -4/Factory | Core integrity fell below 50% 4787 | -4/Factory | Spotted B-86 Titan 4798 | -4/Factory | Lost 4 parts (1n2u1w) 4806 | -4/Factory | System corruption reached 10% 4824 | -4/Factory | Spotted B-86 Titan 4826 | -4/Factory | Core integrity fell below 20% 4845 | -4/Factory | Destroyed by P-70 Sage with Tesla Rifle Last Messages --------------- Fusion Modulator explodes. K-01 Serf destroyed. K-01 Serf collects debris. U-05 Engineer lays Concrete. K-01 Serf collects debris. Knocked back. System corrupted: Matter fused (-5). Assembly Bed disabled. Tesla Rifle destroyed. Matter Pump disabled. Terminal disabled. Assembly Bed disabled. Penetrated by Slug. Slug penetrates Wall. Door malfunctions. Slug penetrates Wall. Slug penetrates Matter Pump. Matter Pump disabled. Slug penetrates W-44 Eye. U-05 Engineer builds a Wall. Map ----- +----------------------------------------------------+ | ###+######????# """" #??????????????????????? | | #??????# """" #??????????????????????? | | #??????# """" #??????????????????????? | | #??????# """" #??????????????????????? | | #??????# """" #??????????????????????? | | #??????# #??????????????????????? | | #??????# """ #??????????????????????? | | #### ######## """ #??????????????????????? | | #??# # """ #??????????????????????? | | #??# # #??????????????????????? | | #??# # #??????????????????????? | | #??# # #??????????????????????? | | ??# # !#??????????????????????? | | #?######## # #??????????????????????? | | ? #????????# #"#;#####??????????????????????? | | ????????????# % #???????????????????????? | | ????????????+ #???????????????????????? | | ????????????# "" #???????????????????????? | | ????????????# """ #???????????????????????? | | ????????????# R" #???????????????????????? | | ????????????##### """ #???????????????????????? | | ???????????????## w###+#############+##????? | | ??????????????##; #??? | | ??????????????# == % ! #??? | | ??????????????# = #??? | | ??????????????### @w """ """ """ !!! ???? | | ????????????????# """ """ """?????????? | | ?????????????####+;######;#u %"" %"" """ !!! #??? | | ?????????????# BB ; #??? | | ?????????????# "" BB p; +??? | | ?????????????# "T p / " " ????? | | ###??????????# # ""G""? ???? | | #??????????# # == BB ? ???? | | / #??????????# ; == BB ???? | | / #??????????# """ " #########/#####; # ???? | | / #??????????# """""" #????????? ????? # ???? | | #??????????# """""" #?????????? ????? ???? | | #######????# """"""p #??????????? #???? ???? | | " + #????# #???????????? #???# ???? | | " # #????# #????????????????? ???? | | " + #????##############?????????????????# #??? | | # ###### " "" #????????????????????# #??? | | # # #????????????????????# #??? | | # # ##???????????????????# #??? | | " # # "##############??????# #??? | | " # # "" ?#????# ??? | | " # % # """ " "" "" "" ######/##?? | | # # "T " "" "" "" ?#! / #?? | | ### + """ """ """ """ """ ?# #?? | | ??# # "" % # """ """ """ """ ## """ #?? | +----------------------------------------------------+ Best States ------------- Heat Dissipation 78 Energy Generation 34 Energy Capacity 1730 Matter Stores 300 Matter Capacity 300 Sight Range 20 Robot Scan Range 14 Terrain Scan Density 10 Armor Coverage 300 Resistance: TH 15 Resistance: EM 15 Core Shielding 30 Evasion (%) 80 Targeting Accuracy 16 Launcher Accuracy 60 Offensive Hacking 10 Defensive Hacking 10 Item Schematics ----------------- None Robot Schematics ------------------ None Fabricated ------------ Nothing Repaired ---------- Nothing Studied --------- Flight Unit | -8/Materials | Hacked Cesium-ion Thruster | -8/Materials | Hacked Hpw. Shotgun | -8/Materials | Hacked Variable Charge Gun | -4/Factory | Hacked Gauss Rifle | -4/Factory | Hacked Alien Tech Used ----------------- None Achievements -------------- Knowing Is Half The Battle Well-fed Force Field \\IAMDERELICT Challenges ------------ None Game ------ Seed AmuletMetaMultirail Manual? 0 Play Time 01:10:28 Cumulative 35.0 hours Start 2026.06.22 @ 19:50:34 End 2026.06.22 @ 21:00:48 Sessions 1 Manual Loads 0 Difficulty Rogue Special Mode None Game No. 37 Rogue 37 Adventurer 0 Explorer 0 Win Type - Total 0 Types 0/0/0/0/0/0/0/0/0/0 Lore% 47 Gallery% 29 Achievement% 24 Wizard Run 0 Options --------- Layout 1 ASCII 0 Keyboard 0 Movement Mouse Keybinds 0 Fullscreen 1 Font 24/X11 Map View 50x35 Zoom Use 0% Tactical HUD 0 Map Filters NONE Filters NONE Steam 1 RUN: 7b9fae9d-5020-477c-a191-728dad9773d1